Workbook

Sheet GASTOS FINANCIEROS(A)
B1: ANEXO A
B2: Préstamo Bancario
B3: Monto | C3: =K6 -> $ 99,444.50
B4: interes | C4: 16%
B5: Tiempo | C5: 10 años
I6: Financiamiento | J6: 20% | K6: =(J16*J6) -> $ 99,444.50
B7: Cuota | C7: Pago | D7: Interes | E7: Amortizacion | F7: Saldo | I7: Capital Propio | J7: 80% | K7: =(J16*J7) -> $ 397,777.98
B8: 0 | F8: =K6 -> 99444.50 | I8: TOTAL | K8: =SUM(K6:K7) -> $ 497,222.48
B9: 1 | C9: 20575.17392 | D9: =(F8*$C$4) -> 15911.12 | E9: =(C9-D9) -> 4664.05 | F9: =(F8-E9) -> 94780
B10: 2 | C10: =C9 -> 20575.17392 | D10: 15164.87 | E10: =(C10-D10) -> 5410.30 | F10: =(F9-E10) -> 89370
B11: 3 | C11: =C10 -> 20575.17392 | D11: 14299.22 | E11: 6275.95 | F11: 83094 | I11: CAPITAL REQUERIDO
B12: 4 | C12: 20575.17392 | D12: 13295.07 | E12: 7280.10 | F12: 75814 | I12: INV. INICIAL EN OBRA FISICA (AÑO 0) (-) | J12: $ 133,000.00
B13: 5 | C13: 20575.17392 | D13: 12130.25 | E13: 8444.92 | F13: 67369 | I13: INV. INICIAL EN MAQUINARIAS Y EQUIPOS (AÑO 0) (-) | J13: $ 107,001.00
B14: 6 | C14: 20575.17392 | D14: 10779.07 | E14: 9796.11 | F14: 57573 | I14: GASTOS DE CONSTITUCION (AÑO 0) (-) | J14: $ 1,161.00
B15: 7 | C15: 20575.17392 | D15: 9211.69 | E15: 11363.49 | F15: 46210 | I15: CAPITAL DE TRABAJO (AÑO 0) (-) | J15: $ 256,060.48
B16: 8 | C16: 20575.17392 | D16: 7393.53 | E16: 13181.64 | F16: 33028 | I16: TOTAL INVERSION | J16: =SUM(J12:J15) -> $ 497,222.48
B17: 9 | C17: 20575.17392 | D17: 5284.47 | E17: 15290.71 | F17: 17737
B18: 10 | C18: 20575.17392 | D18: 2837.96 | E18: 17737.22 | F18: -0

Sheet GASTOS CONSTITUCION(A.1)
A1: GASTOS DE CONSTITUCION DE LA EMPRESA SIME
A2: Gastos de constitucion
A3: Aspectos legales | C3: RENOVACION
A4: Servicios legales | B4: $ 350.00
A5: Cuenta integracion capital | B5: $ 200.00
A6: Notarizar escritura | B6: $ 50.00
A7: Afiliaciacion camara produccion | B7: $ 127.00
A8: Registro comercial | B8: $ 350.00 | C8: 10 AÑOS | E8: PROYECCION DE GASTOS DE CONSTITUCION
A9: Registro marca | B9: $ 16.00 | E9: AÑO1 | F9: AÑO2 | G9: AÑO3 | H9: AÑO4 | I9: AÑO5 | J9: AÑO6 | K9: AÑO7 | L9: AÑO8 | M9: AÑO9 | N9: AÑO10
A10: Certificacion notario | B10: $ 28.00 | E10: =B15 -> $ 1,161.00 | F10: =$E$10-$B$8 -> $ 811.00 | G10: $ 811.00 | H10: $ 811.00 | I10: $ 811.00 | J10: $ 811.00 | K10: $ 811.00 | L10: $ 811.00 | M10: $ 811.00 | N10: $ 811.00
A11: Aspectos tributarios
A12: Obtencion del ruc | B12: 0
A13: Permiso cuerpo bomberos | B13: $ 8.00 | C13: 1 AÑO
A14: Permiso del municipio | B14: $ 32.00 | C14: 1 AÑO
A15: Total anual | B15: =SUM(B4:B14) -> $ 1,161.00

Sheet INV.OBRA CIVIL MAQUINARIA(A.2)
A1: PRESUPUESTO DE OBRA FISICA
A2: Descripción | B2: unidad de medida | C2: Cantidad | D2: Costo unitario | E2: costo total
A3: Reparación del Piso de Concreto | B3: m2 | C3: 500 | D3: 200 | E3: =(D3*C3) -> 100000
A4: Pintura de las Paredes | B4: m2 | C4: 300 | D4: 30 | E4: =(D4*C4) -> 9000
A5: Reparación del techo | B5: m2 | C5: 400 | D5: 30 | E5: 12000
A6: Conexiones de Electricidad | B6: m2 | C6: 100 | D6: 20 | E6: 2000
A7: Reconstrucción de la Oficina | B7: m2 | C7: 200 | D7: 50 | E7: 10000
C8: Total de inversion total de obras fisicas | E8: =SUM(E3:E7) -> $ 133,000.00
A11: INVENTARIO INICIAL ACTIVOS FIJOS
A12: DESCRIPCION | B12: cantidad | C12: costo unitario | D12: costo total | E12: vida util | F12: valor de desecho | G12: Depreciación anual | H12: Depreciación total anual | I12: depreciacion acumulada | J12: valor en libros
A13: Maquinas | D13: =SUM(D14:D24) -> 83650 | F13: =SUM(F14:F24) -> 30580 | H13: =SUM(H14:H24) -> 9783.33
A14: tornos | B14: 2 | C14: 15000 | D14: =(B14*C14) -> 30000 | E14: 10 | F14: 8000 | G14: =(C14/E14) -> 1500 | H14: =(D14/E14) -> 3000 | I14: =(G14*E14) -> 15000 | J14: =(C14-I14) -> 0
A15: taladros de banco | B15: 1 | C15: 5000 | D15: =(B15*C15) -> 5000 | E15: 10 | F15: 2000 | G15: =(C15/E15) -> 500 | H15: 500 | I15: =(G15*E15) -> 5000 | J15: =(C15-I15) -> 0
A16: taladros portatiles | B16: 5 | C16: 120 | D16: 600 | E16: 5 | F16: 50 | G16: 24 | H16: 120 | I16: 120 | J16: 0
A17: soldadoras electricas | B17: 5 | C17: 350 | D17: 1750 | E17: 5 | F17: 150 | G17: 70 | H17: 350 | I17: 350 | J17: 0
A18: equipos de oxicorte | B18: 3 | C18: 300 | D18: 900 | E18: 5 | F18: 150 | G18: 60 | H18: 180 | I18: 300 | J18: 0
A19: Prensa hidraulica | B19: 1 | C19: 14000 | D19: 14000 | E19: 10 | F19: 7000 | G19: 1400 | H19: 1400 | I19: 14000 | J19: 0
A20: herramientas | B20: - | C20: 4000 | D20: =C20 -> 4000 | E20: 3 | F20: 1500 | G20: 1333 | H20: 1333 | I20: 4000 | J20: 0
A21: pulidoras | B21: 5 | C21: 80 | D21: 400 | E21: 2 | F21: 30 | G21: 40 | H21: 200 | I21: 80 | J21: 0
A22: roladora | B22: 1 | C22: 8000 | D22: 8000 | E22: 10 | F22: 3500 | G22: 800 | H22: 800 | I22: 8000 | J22: 0
A23: fresadoras | B23: 1 | C23: 16000 | D23: 16000 | E23: 10 | F23: 7000 | G23: 1600 | H23: 1600 | I23: 16000 | J23: 0
A24: cizallas | B24: 1 | C24: 3000 | D24: =(B24*C24) -> 3000 | E24: 10 | F24: 1200 | G24: 300 | H24: 300 | I24: 3000 | J24: 0
A25: Tecnologia | D25: 2400 | F25: 500 | H25: 800.00 | J25: 0
A26: Equipo computacion | B26: 2 | C26: 1200 | D26: =(B26*C26) -> 2400 | E26: 3 | F26: 500 | G26: 400 | H26: =(D26/E26) -> 800 | I26: 1200 | J26: 0
A27: Vehiculos | D27: 20000 | F27: 4500 | H27: 4000.00 | J27: 0
A28: Camion repartidor | B28: 1 | C28: 20000 | D28: 20000 | E28: 5 | F28: 4500 | G28: 4000 | H28: =(D28/E28) -> 4000 | I28: 20000 | J28: 0
A29: Muebles y Enseres | D29: =SUM(D30:D35) -> 951.00 | F29: =SUM(F30:F35) -> 190.00 | H29: =SUM(H30:H35) -> 95.10 | J29: 0
A30: Archivadores | B30: 5 | C30: 90 | D30: 450 | E30: 10 | F30: 60 | G30: 9 | H30: =(D30/E30) -> 45 | I30: 90 | J30: 0
A31: Escritorio | B31: 2 | C31: 35 | D31: 70 | E31: 10 | F31: 25 | G31: 3.5 | H31: 7 | I31: 35 | J31: 0
A32: sillas | B32: 5 | C32: 15 | D32: 75 | E32: 10 | F32: 10 | G32: 1.5 | H32: 7.5 | I32: 15 | J32: 0
A33: mesa computador | B33: 2 | C33: 43 | D33: 86 | E33: 10 | F33: 25 | G33: 4.3 | H33: 8.6 | I33: 43 | J33: 0
A34: Armario | B34: 2 | C34: 110 | D34: 220 | E34: 10 | F34: 55 | G34: 11 | H34: 22 | I34: 110 | J34: 0
A35: Silla para computadora | B35: 2 | C35: 25 | D35: 50 | E35: 10 | F35: 15 | G35: 2.5 | H35: 5 | I35: 25 | J35: 0
C36: inversion | D36: =SUM(D13,D25,D27,D29) -> $ 107,001.00 | E36: valor desecho | F36: =SUM(F13,F25,F27,F29) -> $ 35,770.00 | G36: Depreciacion | H36: =SUM(H13,H25,H27,H29) -> $ 14,678.43
A39: CALENDARIO DE REEINVERSIONES DE ACTIVOS FIJOS
A40: Maquinas | B40: 1 | C40: 2 | D40: 3 | E40: 4 | F40: 5 | G40: 6 | H40: 7 | I40: 8 | J40: 9 | K40: 10
A41: tornos | K41: 30000
A42: taladros de banco | K42: 5000
A43: taladros portatiles | F43: 600
A44: soldadoras electricas | F44: 1750
A45: equipos de oxicorte | F45: 900
A46: Prensa hidraulica | K46: 14000
A47: herramientas | D47: 4000
A48: pulidoras | C48: 400
A49: roladora | K49: 8000
A50: fresadoras | K50: 16000
A51: cizallas | K51: 3000
A52: Tecnologia
A53: Equipo computacion | D53: 2400
A54: Vehiculos
A55: Camion repartidor | F55: 20000
A56: Muebles y Enseres
A57: Archivadores | K57: 450
A58: Escritorio | K58: 70
A59: sillas | K59: 75
A60: mesa computador | K60: 86
A61: Armario | K61: 220
A62: Silla para computadora | K62: 50
A63: TOTAL | B63: =SUM(B41:B62) -> 0 | C63: =SUM(C41:C62) -> 400 | D63: 6400 | E63: 0 | F63: 23250 | G63: 0 | H63: 0 | I63: 0 | J63: 0 | K63: 76951
A75: CALENDARIO DE INGRESO POR VENTA DE ACTIVOS FIJOS REEMPLAZO
A76: Maquinas | B76: 1 | C76: 2 | D76: 3 | E76: 4 | F76: 5 | G76: 6 | H76: 7 | I76: 8 | J76: 9 | K76: 10
A77: tornos | K77: 8000
A78: taladros de banco | K78: 2000
A79: taladros portatiles | F79: 50
A80: soldadoras electricas | F80: 150
A81: equipos de oxicorte | F81: 150
A82: Prensa hidraulica | K82: 7000
A83: herramientas | D83: 1500
A84: pulidoras | C84: 30
A85: roladora | K85: 3500
A86: fresadoras | K86: 7000
A87: cizallas | K87: 1200
A88: Tecnologia
A89: Equipo computacion | D89: 500
A90: Vehiculos
A91: Camion repartidor | F91: 4500
A92: Muebles y Enseres
A93: Archivadores | F93: 60
A94: Escritorio | F94: 25
A95: sillas | F95: 10
A96: mesa computador | F96: 25
A97: Armario | F97: 55
A98: Silla para computadora | F98: 15
A99: TOTAL | B99: =SUM(B77:B97) -> 0 | C99: 30 | D99: 2000 | E99: 0 | F99: 5025 | G99: 0 | H99: 0 | I99: 0 | J99: 0 | K99: 28700

Sheet PROYECCION INGRESOS (B)
A2: ANEXO B
A3: DETALLE DE PROYECCION DE INGRESOS
B5: AÑO 1 | C5: AÑO 2 | D5: AÑO 3 | E5: AÑO4 | F5: AÑO 5 | G5: AÑO 6 | H5: AÑO 7 | I5: AÑO 8 | J5: AÑO 9 | K5: AÑO 10
A6: POBLACION OBJETIVO | B6: 264 | C6: =(B6*1.05) -> 277.2 | D6: =(C6*1.05) -> 291.06 | E6: 305.61 | F6: 320.89 | G6: =(F6*1.05) -> 336.94 | H6: =(G6*1.05) -> 353.79 | I6: =(H6*1.05) -> 371.47 | J6: =(I6*1.05) -> 390.05 | K6: =(J6*1.05) -> 409.55
A7: CRITERIO DE PORTER (5% DE POBLAC. OBJETIVO) | B7: 0.05 | C7: 0.05 | D7: 0.05 | E7: 0.05 | F7: 0.05 | G7: 0.05 | H7: 0.05 | I7: 0.05 | J7: 0.05 | K7: 0.05
A8: DEMANDA POTENCIAL | B8: =B7*B6 -> 13.2 | C8: =C7*C6 -> 13.86 | D8: 14.55 | E8: 15.28 | F8: 16.04 | G8: 16.85 | H8: 17.69 | I8: 18.57 | J8: 19.50 | K8: 20.48
A9: DISPONIBILIDAD DE CONSUMO | B9: 0.71 | C9: 0.71 | D9: 0.71 | E9: 0.71 | F9: 0.71 | G9: 0.71 | H9: 0.71 | I9: 0.71 | J9: 0.71 | K9: 0.71
A10: DEMANDA EFECTIVA | B10: =B9*B8 -> 9 | C10: =C9*C8 -> 10 | D10: 10 | E10: 11 | F10: 11 | G10: 12 | H10: 13 | I10: 13 | J10: 14 | K10: 15
A11: FRECUENCIA DE CONSUMO | B11: =$G$72 -> 53 | C11: =$G$72 -> 53 | D11: 53 | E11: 53 | F11: 53 | G11: 53 | H11: 53 | I11: 53 | J11: 53 | K11: 53
A12: SERVICIOS PRESTADOS | B12: =B11*B10 -> 493 | C12: =C11*C10 -> 518 | D12: 543 | E12: 571 | F12: 599 | G12: 629 | H12: 661 | I12: 694 | J12: 728 | K12: 765
B16: Disponibilidad del consumo
B45: DETALLE DEL PRECIO
B46: N-EMPRESAS | C46: RANGO | E46: MEDIA SIMPLE | F46: PONDERADOR | G46: PRECIO
B47: 22 | C47: 100 | D47: 500 | E47: =AVERAGE(C47:D47) -> 300 | F47: =(B47/$B$52) -> 5.76% | G47: =+(E47*F47) -> 17.28
B48: 44 | C48: 501 | D48: 1000 | E48: =AVERAGE(C48:D48) -> 750.5 | F48: =(B48/$B$52) -> 11.52% | G48: =+(E48*F48) -> 86.45
B49: 83 | C49: 1001 | D49: 2000 | E49: 1500.5 | F49: 21.73% | G49: 326.02
B50: 115 | C50: 2001 | D50: 3000 | E50: 2500.5 | F50: 30.10% | G50: 752.77
B51: 118 | C51: >3000 | D51: 0 | E51: 0 | F51: 30.89% | G51: 0.00
B52: =SUM(B47:B51) -> 382 | F52: PRECIO TOTAL | G52: =SUM(G47:G51) -> 1183
B66: DETALLE FRECUENCIA DE CONSUMO
B67: EMPRESAS | C67: RANGO USO DEL SERVICIO POR MES | E67: MEDIA SIMPLE | F67: PONDERADOR | G67: FRECUENCIA DE CONSUMO
B68: 127 | C68: 1 | D68: 20 | E68: =SUM(C68:D68) -> 21 | F68: =(B68/$B$72) -> 33% | G68: =(F68*E68) -> 6.98
B69: 111 | C69: 21 | D69: 30 | E69: =SUM(C69:D69) -> 51 | F69: =(B69/$B$72) -> 29% | G69: =(F69*E69) -> 14.82
B70: 67 | C70: 31 | D70: 40 | E70: 71 | F70: =(B70/$B$72) -> 18% | G70: 12.45
B71: 77 | C71: 41 | D71: 50 | E71: 91 | F71: =(B71/$B$72) -> 20% | G71: 18.34
B72: =SUM(B68:B71) -> 382 | G72: =SUM(G68:G71) -> 53
A88: PROYECCIONES DE INGRESOS
A89: DETALLE DE LOS INGRESOS | B89: CANTIDAD DEMANDADA | C89: PRECIO POR SERVICIO | D89: INGRESO
A90: AÑO 1 | B90: =B12 -> 493 | C90: =$G$52 -> 1183 | D90: =(B90*C90) -> $ 582,906.64
A91: AÑO 2 | B91: =C12 -> 518 | C91: =$G$52 -> 1183 | D91: $ 612,051.97
A92: AÑO 3 | B92: =D12 -> 543 | C92: 1183 | D92: $ 642,654.57
A93: AÑO4 | B93: =E12 -> 571 | C93: 1183 | D93: $ 674,787.30
A94: AÑO 5 | B94: =F12 -> 599 | C94: 1183 | D94: $ 708,526.67
A95: AÑO 6 | B95: =G12 -> 629 | C95: 1183 | D95: $ 743,953.00
A96: AÑO 7 | B96: =H12 -> 661 | C96: 1183 | D96: $ 781,150.65
A97: AÑO 8 | B97: =I12 -> 694 | C97: 1183 | D97: $ 820,208.18
A98: AÑO 9 | B98: =J12 -> 728 | C98: 1183 | D98: $ 861,218.59
A99: AÑO 10 | B99: =K12 -> 765 | C99: 1183 | D99: $ 904,279.52

Sheet GASTOS EN PUBLICIDAD(C)
A1: GASTOS DE PUBLICIDAD
E2: anexo C
A3: Precio de publicidad
A4: diarios | B4: ordinario | C4: domingo
A5: el universo | B5: $ 133.00 | C5: $ 186.00
A6: expreso | B6: $ 44.00 | C6: $ 66.00 | E6: PROYECCION EN PUBLICIDAD
A7: metroquil | B7: $ 34.00 | C7: $ 76.00 | E7: año1 | F7: año 2 | G7: año3 | H7: año4 | I7: año5 | J7: año6 | K7: año7 | L7: año8 | M7: año9 | N7: año10
A8: extra | B8: $ 40.00 | C8: $ 50.00 | E8: =$D$13 -> $ 9,156.00 | F8: =$D$13 -> $ 9,156.00 | G8: =(F8-(F8*30%)) -> $ 6,409.20 | H8: =(G8-(G8*30%)) -> $ 4,486.44 | I8: =(H8-(H8*30%)) -> $ 3,140.51 | J8: =($I$8-($I$8*50%)) -> $ 1,570.25 | K8: =($I$8-($I$8*50%)) -> $ 1,570.25 | L8: $ 1,570.25 | M8: $ 1,570.25 | N8: $ 1,570.25
A9: telegrafo | B9: $ 44.00 | C9: $ 60.00
A10: volantes | B10: $ 30.00
A11: Subtotal | B11: =SUM(B5:B10) -> $ 325.00 | C11: =SUM(C5:C9) -> $ 438.00
A12: total | B12: Mensual | C12: mensual
A13: total | B13: =B11*12 -> $ 3,900.00 | C13: =C11*12 -> $ 5,256.00 | D13: =SUM(B13:C13) -> $ 9,156.00 | E13: ANUAL
A14: ordinario:lunes -sabado | D14: =D13/12 -> $ 763.00 | E14: MENSUAL
A15: iva incluido

Sheet GASTOS OPERATIVOS(D)
B2: DETALLE DE GASTOS OPERATIVOS
B4: GASTOS | C4: AÑO 1 | D4: AÑO 2 | E4: AÑO 3 | F4: AÑO 4 | G4: AÑO 5 | H4: AÑO 6 | I4: AÑO 7 | J4: AÑO 8 | K4: AÑO 9 | L4: AÑO 10
B5: SERVICIOS BASICOS | C5: =$C$33 -> $ 8,901.60 | D5: =$C$33 -> $ 8,901.60 | E5: $ 8,901.60 | F5: $ 8,901.60 | G5: $ 8,901.60 | H5: $ 8,901.60 | I5: $ 8,901.60 | J5: $ 8,901.60 | K5: $ 8,901.60 | L5: $ 8,901.60
B6: SUMINISTRO DE OFICINAS | C6: $ 100.00 | D6: $ 100.00 | E6: $ 100.00 | F6: $ 120.00 | G6: $ 120.00 | H6: $ 130.00 | I6: $ 130.00 | J6: $ 150.00 | K6: $ 150.00 | L6: $ 150.00
B7: MANTENIMIENTO DE MAQUINARIAS | C7: $ 1,000.00 | D7: $ 1,000.00 | E7: $ 2,000.00 | F7: $ 3,000.00 | G7: $ 5,000.00 | H7: $ 1,000.00 | I7: $ 1,000.00 | J7: $ 2,000.00 | K7: $ 3,000.00 | L7: $ 5,000.00
B8: COMBUSTIBLES | C8: =$C$51 -> $ 5,400.00 | D8: =$C$51 -> $ 5,400.00 | E8: $ 5,400.00 | F8: $ 5,400.00 | G8: $ 5,400.00 | H8: $ 5,400.00 | I8: $ 5,400.00 | J8: $ 5,400.00 | K8: $ 5,400.00 | L8: $ 5,400.00
B9: DEPRECIACION | C9: =$C$40 -> $ 14,678.43 | D9: =$C$40 -> $ 14,678.43 | E9: $ 14,678.43 | F9: $ 14,678.43 | G9: $ 14,678.43 | H9: $ 14,678.43 | I9: $ 14,678.43 | J9: $ 14,678.43 | K9: $ 14,678.43 | L9: $ 14,678.43
B10: CAPACITACION | C10: $ 5,400.00 | D10: $ 5,400.00 | E10: $ 5,400.00 | F10: $ 5,400.00 | G10: $ 5,400.00 | H10: $ 5,400.00 | I10: $ 5,400.00 | J10: $ 5,400.00 | K10: $ 5,400.00 | L10: $ 5,400.00
B15: consumo de energia | F15: Consumo Kw/hora
B16: Equipos y maquinaria | C16: Cantidad | D16: Kw/hora | E16: Horas /día | F16: Diario | G16: Mensual | H16: Anual | I16: Coste Kw/Hora | J16: Total Costo Consumo Anual
B17: tornos | C17: 2 | D17: 1 | E17: 8 | F17: =D17*E17 -> 8 | G17: =(F17*30) -> 240 | H17: =(G17*12) -> 2880 | I17: 0.09 | J17: =(H17*I17)*C17 -> 518.4
B18: taladros de banco | C18: 1 | D18: 0.5 | E18: 8 | F18: =E18*D18 -> 4 | G18: =(F18*30) -> 120 | H18: =(G18*12) -> 1440 | I18: =I17 -> 0.09 | J18: =(H18*I18)*C18 -> 129.6
B19: taladros portatiles | C19: 5 | D19: 0.5 | E19: 8 | F19: =E19*D19 -> 4 | G19: 120 | H19: 1440 | I19: =I18 -> 0.09 | J19: 648
B20: soldadoras electricas | C20: 5 | D20: 1 | E20: 8 | F20: =E20*D20 -> 8 | G20: 240 | H20: 2880 | I20: =I19 -> 0.09 | J20: 1296
B21: Prensa hidraulica | C21: 1 | D21: 0.75 | E21: 8 | F21: =E21*D21 -> 6 | G21: 180 | H21: 2160 | I21: =I20 -> 0.09 | J21: 194.4
B22: pulidoras | C22: 5 | D22: 0.5 | E22: 8 | F22: =E22*D22 -> 4 | G22: 120 | H22: 1440 | I22: =I21 -> 0.09 | J22: 648
B23: fresadoras | C23: 1 | D23: 1 | E23: 8 | F23: =E23*D23 -> 8 | G23: 240 | H23: 2880 | I23: =I22 -> 0.09 | J23: 259.2
B24: computador | C24: 2 | D24: 1 | E24: 8 | F24: 8 | G24: 240 | H24: 2880 | I24: 0.09 | J24: 518.4
B25: aire condicionado | C25: 1 | D25: 1 | E25: 4 | F25: 4 | G25: 120 | H25: 1440 | I25: 0.09 | J25: 129.6
B26: luminarias | C26: 10 | D26: 1 | E26: 4 | F26: 4 | G26: 120 | H26: 1440 | I26: 0.09 | J26: 1296
I27: Total | J27: =SUM(J17:J25) -> 4341.6
B28: Gastos Servicios Básicos
B29: Total Consumo Energía | C29: =J27 -> $ 4,341.60
B30: Total Consumo de Agua | C30: =(130*12) -> $ 1,560.00
B31: Teléfono | C31: $ 2,400.00
B32: Internet | C32: $ 600.00
B33: Total Servicios Básicos | C33: =SUM(C29:C32) -> $ 8,901.60
B35: Gastos Depreciacion
B36: Depreciaciones muebles y enseres | C36: ='INV.OBRA CIVIL MAQUINARIA(A.2)'!H29 -> $ 95.10
B37: Depreciaciones Maquinarias | C37: ='INV.OBRA CIVIL MAQUINARIA(A.2)'!H13 -> $ 9,783.33
B38: Depreciacion equipos computacion | C38: ='INV.OBRA CIVIL MAQUINARIA(A.2)'!H25 -> $ 800.00
B39: Depreciacion vehiculo | C39: ='INV.OBRA CIVIL MAQUINARIA(A.2)'!H27 -> $ 4,000.00
B40: total Depreciacion | C40: =SUM(C36:C39) -> $ 14,678.43
B43: Gastos combustibles
B44: camion de 20 toneladas
B45: Capacidad tanque | C45: 20 galones
B46: Frecuencia de uso(Dias) | C46: 30
B47: Galones /dia | C47: 10
B48: Total galones (mensual) | C48: =(C47*C46) -> 300
B49: precio/galon | C49: 1.5
B50: mensual | C50: =(C48*C49) -> 450
B51: anual | C51: =(C50*12) -> $ 5,400.00

Sheet SUELDOS Y SALARIOS(E)
A1: anexo E
B2: Presupuesto del Personal | H2: TENDENCIA
B3: Remuneracion Anual | H3: AÑO | I3: Porcentaje inflacion
B4: Cargo | C4: numero de puesto | D4: unitario mensual | E4: Total Mensual | F4: total Anual | H4: 2005 | I4: 4.40%
B5: Gerente Tecnico | C5: 1 | D5: $ 1,400.00 | E5: =(D5*C5) -> $ 1,400.00 | F5: =(E5*12) -> $ 16,800.00 | H5: 2006 | I5: 4.20%
B6: Auxiliar contable | C6: 1 | D6: $ 800.00 | E6: =(D6*C6) -> $ 800.00 | F6: =(E6*12) -> $ 9,600.00 | H6: 2007 | I6: 3.32%
B7: Jefe administrativo | C7: 1 | D7: $ 1,200.00 | E7: $ 1,200.00 | F7: $ 14,400.00 | H7: 2008 | I7: 8.83%
B8: Jefe tecnico | C8: 1 | D8: $ 1,200.00 | E8: $ 1,200.00 | F8: $ 14,400.00 | H8: 2009 | I8: 4.31%
B9: Mecanicos | C9: 10 | D9: $ 800.00 | E9: $ 8,000.00 | F9: $ 96,000.00 | H9: 2010 | I9: =TREND(I4:I8,H4:H8,H9) -> 6.35%
B10: electricista | C10: 8 | D10: $ 700.00 | E10: $ 5,600.00 | F10: $ 67,200.00 | H10: 2011 | I10: 6.99%
B11: ayudantes | C11: 10 | D11: $ 400.00 | E11: $ 4,000.00 | F11: $ 48,000.00 | H11: 2012 | I11: 7.41%
D12: total | F12: =SUM(F5:F11) -> $ 266,400.00 | H12: 2013 | I12: 6.73%
B13: ESTA INCLUIDOS LOS BENEFICIOS DE LEY | H13: 2014 | I13: 8.13%
H14: 2015 | I14: 8.11%
H15: 2016 | I15: 8.37%
H16: 2017 | I16: 8.74%
H17: 2018 | I17: 9.29%
A18: PRESUPUESTO DE LOS SUELDOS DE ACUERDO A LA INFLACION
A19: AÑO 1 | B19: AÑO 2 | C19: AÑO 3 | D19: AÑO 4 | E19: AÑO 5 | F19: AÑO 6 | G19: AÑO 7 | H19: AÑO 8 | I19: AÑO 9 | J19: AÑO 10
A20: =F12 -> $ 266,400.00 | B20: =(A20*I9)+A20 -> $ 283,308.41 | C20: =(B20*I10)+B20 -> $ 303,102.03 | D20: =(C20*I11)+C20 -> $ 325,573.35 | E20: =(D20*$I$12)+D20 -> $ 347,486.79 | F20: =(E20*$I$13)+E20 -> $ 375,737.78 | G20: =(F20*$I$14)+F20 -> $ 406,227.89 | H20: =(G20*$I$15)+G20 -> $ 440,216.79 | I20: =(H20*$I$16)+H20 -> $ 478,684.53 | J20: =(I20*$I$17)+I20 -> $ 523,163.00

Sheet VALOR DE DESECHO Y TMAR(F)(F.1)
A1: anexo F
C7: VALOR DE DESECHO DEL PROYECTO
C9: VD = (FC. PROMEDIO-DEP. ANUAL)/TMAR
C11: FLUJO CAJA PROM. ANUAL | D11: $ 156,765.89
C12: DEP. ANUAL | D12: ='GASTOS OPERATIVOS(D)'!C40 -> $ 14,678.43
C13: TMAR | D13: =D18 -> 14%
C14: VALOR DESECHO
D15: $ 1,030,664.88
C16: CALCULANDO LA TMAR
C17: Ke = [ Rf + β ( Rm – Rf ) ] + Rp
C18: tasa rentabilidad Ke= | D18: =(D19+(D21-D19)*D20)+D22 -> 13.79% | E18: FUENTE INFORMACION
C19: Tasa libre de riesgo (Bonos del tesoro EEUU ) Rf= | D19: 3% | E19: rf : 2.83(Datos de la Reserva federal EEUU).
C20: Coeficiente de riesgo del sector B= | D20: 0.394 | E20: β= 0.65 (Yahoo Finance).
C21: Tasa de Rentabilidad del Mercado Rm | D21: 21% | E21: rm : 20.83 (Yahoo finance).
C22: Porcentaje riesgo país. Rp | D22: 4% | E22: RPecu : 3.864 (Datos publicados el 14-01-2009).

Sheet CAPITAL TRABAJO(G)
B2: ANEXO G
B4: MÉTODO DÉFICIT MÁXIMO ACUMULADO
C6: Enero | D6: Febrero | E6: Marzo | F6: Abril | G6: Mayo | H6: Junio | I6: Julio | J6: Agosto | K6: Septiembre | L6: Octubre | M6: Noviembre | N6: Diciembre
B7: Cantidad de servicios contratados | C7: ='PROYECCION INGRESOS (B)'!$B$12/12 -> 41 | D7: ='PROYECCION INGRESOS (B)'!$B$12/12 -> 41 | E7: ='PROYECCION INGRESOS (B)'!$B$12/12 -> 41 | F7: ='PROYECCION INGRESOS (B)'!$B$12/12 -> 41 | G7: ='PROYECCION INGRESOS (B)'!$B$12/12 -> 41 | H7: ='PROYECCION INGRESOS (B)'!$B$12/12 -> 41 | I7: ='PROYECCION INGRESOS (B)'!$B$12/12 -> 41 | J7: ='PROYECCION INGRESOS (B)'!$B$12/12 -> 41 | K7: ='PROYECCION INGRESOS (B)'!$B$12/12 -> 41 | L7: ='PROYECCION INGRESOS (B)'!$B$12/12 -> 41 | M7: ='PROYECCION INGRESOS (B)'!$B$12/12 -> 41 | N7: ='PROYECCION INGRESOS (B)'!$B$12/12 -> 41
B8: Precio Por servicio | C8: ='PROYECCION INGRESOS (B)'!$G$52/12 -> $ 99 | D8: ='PROYECCION INGRESOS (B)'!$G$52/12 -> $ 99 | E8: ='PROYECCION INGRESOS (B)'!$G$52/12 -> $ 99 | F8: ='PROYECCION INGRESOS (B)'!$G$52/12 -> $ 99 | G8: ='PROYECCION INGRESOS (B)'!$G$52/12 -> $ 99 | H8: ='PROYECCION INGRESOS (B)'!$G$52/12 -> $ 99 | I8: ='PROYECCION INGRESOS (B)'!$G$52/12 -> $ 99 | J8: ='PROYECCION INGRESOS (B)'!$G$52/12 -> $ 99 | K8: ='PROYECCION INGRESOS (B)'!$G$52/12 -> $ 99 | L8: ='PROYECCION INGRESOS (B)'!$G$52/12 -> $ 99 | M8: ='PROYECCION INGRESOS (B)'!$G$52/12 -> $ 99 | N8: ='PROYECCION INGRESOS (B)'!$G$52/12 -> $ 99
B9: Ingreso Mensual $ | C9: =(C7*C8) -> $ 4,048 | D9: =(D7*D8) -> $ 4,048 | E9: $ 4,048 | F9: $ 4,048 | G9: $ 4,048 | H9: $ 4,048 | I9: $ 4,048 | J9: $ 4,048 | K9: $ 4,048 | L9: $ 4,048 | M9: $ 4,048 | N9: $ 4,048
B10: SERVICIOS BASICOS | C10: ='GASTOS OPERATIVOS(D)'!$C$33/12 -> $ 742 | D10: ='GASTOS OPERATIVOS(D)'!$C$33/12 -> $ 742 | E10: ='GASTOS OPERATIVOS(D)'!$C$33/12 -> $ 742 | F10: ='GASTOS OPERATIVOS(D)'!$C$33/12 -> $ 742 | G10: ='GASTOS OPERATIVOS(D)'!$C$33/12 -> $ 742 | H10: ='GASTOS OPERATIVOS(D)'!$C$33/12 -> $ 742 | I10: ='GASTOS OPERATIVOS(D)'!$C$33/12 -> $ 742 | J10: ='GASTOS OPERATIVOS(D)'!$C$33/12 -> $ 742 | K10: ='GASTOS OPERATIVOS(D)'!$C$33/12 -> $ 742 | L10: ='GASTOS OPERATIVOS(D)'!$C$33/12 -> $ 742 | M10: ='GASTOS OPERATIVOS(D)'!$C$33/12 -> $ 742 | N10: ='GASTOS OPERATIVOS(D)'!$C$33/12 -> $ 742
B11: SUMINISTRO DE OFICINA | C11: ='GASTOS OPERATIVOS(D)'!$C$6/12 -> $ 8 | D11: ='GASTOS OPERATIVOS(D)'!$C$6/12 -> $ 8 | E11: ='GASTOS OPERATIVOS(D)'!$C$6/12 -> $ 8 | F11: ='GASTOS OPERATIVOS(D)'!$C$6/12 -> $ 8 | G11: ='GASTOS OPERATIVOS(D)'!$C$6/12 -> $ 8 | H11: ='GASTOS OPERATIVOS(D)'!$C$6/12 -> $ 8 | I11: ='GASTOS OPERATIVOS(D)'!$C$6/12 -> $ 8 | J11: ='GASTOS OPERATIVOS(D)'!$C$6/12 -> $ 8 | K11: ='GASTOS OPERATIVOS(D)'!$C$6/12 -> $ 8 | L11: ='GASTOS OPERATIVOS(D)'!$C$6/12 -> $ 8 | M11: ='GASTOS OPERATIVOS(D)'!$C$6/12 -> $ 8 | N11: ='GASTOS OPERATIVOS(D)'!$C$6/12 -> $ 8
B12: COMBUSTIBLES | C12: ='GASTOS OPERATIVOS(D)'!$C$51/12 -> $ 450 | D12: ='GASTOS OPERATIVOS(D)'!$C$51/12 -> $ 450 | E12: ='GASTOS OPERATIVOS(D)'!$C$51/12 -> $ 450 | F12: ='GASTOS OPERATIVOS(D)'!$C$51/12 -> $ 450 | G12: ='GASTOS OPERATIVOS(D)'!$C$51/12 -> $ 450 | H12: ='GASTOS OPERATIVOS(D)'!$C$51/12 -> $ 450 | I12: ='GASTOS OPERATIVOS(D)'!$C$51/12 -> $ 450 | J12: ='GASTOS OPERATIVOS(D)'!$C$51/12 -> $ 450 | K12: ='GASTOS OPERATIVOS(D)'!$C$51/12 -> $ 450 | L12: ='GASTOS OPERATIVOS(D)'!$C$51/12 -> $ 450 | M12: ='GASTOS OPERATIVOS(D)'!$C$51/12 -> $ 450 | N12: ='GASTOS OPERATIVOS(D)'!$C$51/12 -> $ 450
B13: GASTOS DE PUBLICIDAD | C13: ='GASTOS EN PUBLICIDAD(C)'!$D$13/12 -> $ 763 | D13: ='GASTOS EN PUBLICIDAD(C)'!$D$13/12 -> $ 763 | E13: ='GASTOS EN PUBLICIDAD(C)'!$D$13/12 -> $ 763 | F13: ='GASTOS EN PUBLICIDAD(C)'!$D$13/12 -> $ 763 | G13: ='GASTOS EN PUBLICIDAD(C)'!$D$13/12 -> $ 763 | H13: ='GASTOS EN PUBLICIDAD(C)'!$D$13/12 -> $ 763 | I13: ='GASTOS EN PUBLICIDAD(C)'!$D$13/12 -> $ 763 | J13: ='GASTOS EN PUBLICIDAD(C)'!$D$13/12 -> $ 763 | K13: ='GASTOS EN PUBLICIDAD(C)'!$D$13/12 -> $ 763 | L13: ='GASTOS EN PUBLICIDAD(C)'!$D$13/12 -> $ 763 | M13: ='GASTOS EN PUBLICIDAD(C)'!$D$13/12 -> $ 763 | N13: ='GASTOS EN PUBLICIDAD(C)'!$D$13/12 -> $ 763
B14: GASTOS DEPRECIACION DE EQUIPOS | C14: ='INV.OBRA CIVIL MAQUINARIA(A.2)'!$H$36/12 -> $ 1,223 | D14: ='INV.OBRA CIVIL MAQUINARIA(A.2)'!$H$36/12 -> $ 1,223 | E14: ='INV.OBRA CIVIL MAQUINARIA(A.2)'!$H$36/12 -> $ 1,223 | F14: ='INV.OBRA CIVIL MAQUINARIA(A.2)'!$H$36/12 -> $ 1,223 | G14: ='INV.OBRA CIVIL MAQUINARIA(A.2)'!$H$36/12 -> $ 1,223 | H14: ='INV.OBRA CIVIL MAQUINARIA(A.2)'!$H$36/12 -> $ 1,223 | I14: ='INV.OBRA CIVIL MAQUINARIA(A.2)'!$H$36/12 -> $ 1,223 | J14: ='INV.OBRA CIVIL MAQUINARIA(A.2)'!$H$36/12 -> $ 1,223 | K14: ='INV.OBRA CIVIL MAQUINARIA(A.2)'!$H$36/12 -> $ 1,223 | L14: ='INV.OBRA CIVIL MAQUINARIA(A.2)'!$H$36/12 -> $ 1,223 | M14: ='INV.OBRA CIVIL MAQUINARIA(A.2)'!$H$36/12 -> $ 1,223 | N14: ='INV.OBRA CIVIL MAQUINARIA(A.2)'!$H$36/12 -> $ 1,223
B15: SUELDOS Y SALARIOS | C15: ='SUELDOS Y SALARIOS(E)'!$A$20/12 -> $ 22,200 | D15: ='SUELDOS Y SALARIOS(E)'!$A$20/12 -> $ 22,200 | E15: ='SUELDOS Y SALARIOS(E)'!$A$20/12 -> $ 22,200 | F15: ='SUELDOS Y SALARIOS(E)'!$A$20/12 -> $ 22,200 | G15: ='SUELDOS Y SALARIOS(E)'!$A$20/12 -> $ 22,200 | H15: ='SUELDOS Y SALARIOS(E)'!$A$20/12 -> $ 22,200 | I15: ='SUELDOS Y SALARIOS(E)'!$A$20/12 -> $ 22,200 | J15: ='SUELDOS Y SALARIOS(E)'!$A$20/12 -> $ 22,200 | K15: ='SUELDOS Y SALARIOS(E)'!$A$20/12 -> $ 22,200 | L15: ='SUELDOS Y SALARIOS(E)'!$A$20/12 -> $ 22,200 | M15: ='SUELDOS Y SALARIOS(E)'!$A$20/12 -> $ 22,200 | N15: ='SUELDOS Y SALARIOS(E)'!$A$20/12 -> $ 22,200
B16: Flujo Mensual | C16: =(C9-C10-C11-C12-C13-C14-C15) -> $ (21,338) | D16: =(D9-D10-D11-D12-D13-D14-D15) -> $ (21,338) | E16: $ (21,338) | F16: $ (21,338) | G16: $ (21,338) | H16: $ (21,338) | I16: $ (21,338) | J16: $ (21,338) | K16: $ (21,338) | L16: $ (21,338) | M16: $ (21,338) | N16: $ (21,338)
B17: Saldo Acumulado | C17: =C16 -> $ (21,338) | D17: =C17+D16 -> $ (42,677) | E17: =D17+E16 -> $ (64,015) | F17: =E17+F16 -> $ (85,353) | G17: $ (106,692) | H17: $ (128,030) | I17: $ (149,369) | J17: $ (170,707) | K17: $ (192,045) | L17: $ (213,384) | M17: $ (234,722) | N17: $ (256,060)

Sheet FLUJO DE CAJA(H)
A1: anexo H
A3: FLUJO DE EFECTIVO
A4: PROYECTO SIME
B5: AÑO 0 | C5: AÑO 1 | D5: AÑO 2 | E5: AÑO 3 | F5: AÑO 4 | G5: AÑO 5 | H5: AÑO 6 | I5: AÑO 7 | J5: AÑO 8 | K5: AÑO 9 | L5: AÑO 10
A6: CANTIDAD SERVICOS CONTRADOS | C6: ='PROYECCION INGRESOS (B)'!B12 -> 493 | D6: ='PROYECCION INGRESOS (B)'!C12 -> 518 | E6: ='PROYECCION INGRESOS (B)'!D12 -> 543 | F6: ='PROYECCION INGRESOS (B)'!E12 -> 571 | G6: ='PROYECCION INGRESOS (B)'!F12 -> 599 | H6: ='PROYECCION INGRESOS (B)'!G12 -> 629 | I6: ='PROYECCION INGRESOS (B)'!H12 -> 661 | J6: ='PROYECCION INGRESOS (B)'!I12 -> 694 | K6: ='PROYECCION INGRESOS (B)'!J12 -> 728 | L6: ='PROYECCION INGRESOS (B)'!K12 -> 765
A7: PRECIO POR SERVICIOS | C7: ='PROYECCION INGRESOS (B)'!$G$52 -> $ 1,183 | D7: ='PROYECCION INGRESOS (B)'!$G$52 -> $ 1,183 | E7: ='PROYECCION INGRESOS (B)'!$G$52 -> $ 1,183 | F7: ='PROYECCION INGRESOS (B)'!$G$52 -> $ 1,183 | G7: ='PROYECCION INGRESOS (B)'!$G$52 -> $ 1,183 | H7: ='PROYECCION INGRESOS (B)'!$G$52 -> $ 1,183 | I7: ='PROYECCION INGRESOS (B)'!$G$52 -> $ 1,183 | J7: ='PROYECCION INGRESOS (B)'!$G$52 -> $ 1,183 | K7: ='PROYECCION INGRESOS (B)'!$G$52 -> $ 1,183 | L7: ='PROYECCION INGRESOS (B)'!$G$52 -> $ 1,183
A8: INGRESOS VTA. (+) | C8: =(C7*C6) -> $ 582,906.64 | D8: =(D7*D6) -> $ 612,051.97 | E8: $ 642,654.57 | F8: $ 674,787.30 | G8: $ 708,526.67 | H8: $ 743,953.00 | I8: $ 781,150.65 | J8: $ 820,208.18 | K8: $ 861,218.59 | L8: $ 904,279.52
A9: COSTO DE PRODUCCION (-) | C9: 0 | D9: 0 | E9: 0 | F9: 0 | G9: 0 | H9: 0 | I9: 0 | J9: 0 | K9: 0 | L9: 0
A10: MARGEN BRUTO | C10: =C8-C9 -> $ 582,906.64 | D10: =D8-D9 -> $ 612,051.97 | E10: $ 642,654.57 | F10: $ 674,787.30 | G10: $ 708,526.67 | H10: $ 743,953.00 | I10: $ 781,150.65 | J10: $ 820,208.18 | K10: $ 861,218.59 | L10: $ 904,279.52
A11: GASTOS OPERATIVOS (-)
A12: SERVICIOS BASICOS | C12: ='GASTOS OPERATIVOS(D)'!$C$5 -> $ 8,901.60 | D12: ='GASTOS OPERATIVOS(D)'!$C$5 -> $ 8,901.60 | E12: ='GASTOS OPERATIVOS(D)'!$C$5 -> $ 8,901.60 | F12: ='GASTOS OPERATIVOS(D)'!$C$5 -> $ 8,901.60 | G12: ='GASTOS OPERATIVOS(D)'!$C$5 -> $ 8,901.60 | H12: ='GASTOS OPERATIVOS(D)'!$C$5 -> $ 8,901.60 | I12: ='GASTOS OPERATIVOS(D)'!$C$5 -> $ 8,901.60 | J12: ='GASTOS OPERATIVOS(D)'!$C$5 -> $ 8,901.60 | K12: ='GASTOS OPERATIVOS(D)'!$C$5 -> $ 8,901.60 | L12: ='GASTOS OPERATIVOS(D)'!$C$5 -> $ 8,901.60
A13: SUMINISTRO DE OFICINA | C13: ='GASTOS OPERATIVOS(D)'!C6 -> $ 100.00 | D13: ='GASTOS OPERATIVOS(D)'!D6 -> $ 100.00 | E13: ='GASTOS OPERATIVOS(D)'!E6 -> $ 100.00 | F13: ='GASTOS OPERATIVOS(D)'!F6 -> $ 120.00 | G13: ='GASTOS OPERATIVOS(D)'!G6 -> $ 120.00 | H13: ='GASTOS OPERATIVOS(D)'!H6 -> $ 130.00 | I13: ='GASTOS OPERATIVOS(D)'!I6 -> $ 130.00 | J13: ='GASTOS OPERATIVOS(D)'!J6 -> $ 150.00 | K13: ='GASTOS OPERATIVOS(D)'!K6 -> $ 150.00 | L13: ='GASTOS OPERATIVOS(D)'!L6 -> $ 150.00
A14: MANTENIMIENTO MAQUINARIAS | C14: ='GASTOS OPERATIVOS(D)'!$C$7 -> $ 1,000.00 | D14: ='GASTOS OPERATIVOS(D)'!$D$7 -> $ 1,000.00 | E14: ='GASTOS OPERATIVOS(D)'!$E$7 -> $ 2,000.00 | F14: ='GASTOS OPERATIVOS(D)'!$F$7 -> $ 3,000.00 | G14: ='GASTOS OPERATIVOS(D)'!$G$7 -> $ 5,000.00 | H14: ='GASTOS OPERATIVOS(D)'!$H$7 -> $ 1,000.00 | I14: ='GASTOS OPERATIVOS(D)'!$I$7 -> $ 1,000.00 | J14: ='GASTOS OPERATIVOS(D)'!$J$7 -> $ 2,000.00 | K14: ='GASTOS OPERATIVOS(D)'!$K$7 -> $ 3,000.00 | L14: ='GASTOS OPERATIVOS(D)'!$L$7 -> $ 5,000.00
A15: COMBUSTIBLES | C15: ='GASTOS OPERATIVOS(D)'!$C$8 -> $ 5,400.00 | D15: ='GASTOS OPERATIVOS(D)'!$C$8 -> $ 5,400.00 | E15: ='GASTOS OPERATIVOS(D)'!$C$8 -> $ 5,400.00 | F15: ='GASTOS OPERATIVOS(D)'!$C$8 -> $ 5,400.00 | G15: ='GASTOS OPERATIVOS(D)'!$C$8 -> $ 5,400.00 | H15: ='GASTOS OPERATIVOS(D)'!$C$8 -> $ 5,400.00 | I15: ='GASTOS OPERATIVOS(D)'!$C$8 -> $ 5,400.00 | J15: ='GASTOS OPERATIVOS(D)'!$C$8 -> $ 5,400.00 | K15: ='GASTOS OPERATIVOS(D)'!$C$8 -> $ 5,400.00 | L15: ='GASTOS OPERATIVOS(D)'!$C$8 -> $ 5,400.00
A16: CAPACITACION | C16: ='GASTOS OPERATIVOS(D)'!$C$10 -> $ 5,400.00 | D16: ='GASTOS OPERATIVOS(D)'!$C$10 -> $ 5,400.00 | E16: ='GASTOS OPERATIVOS(D)'!$C$10 -> $ 5,400.00 | F16: ='GASTOS OPERATIVOS(D)'!$C$10 -> $ 5,400.00 | G16: ='GASTOS OPERATIVOS(D)'!$C$10 -> $ 5,400.00 | H16: ='GASTOS OPERATIVOS(D)'!$C$10 -> $ 5,400.00 | I16: ='GASTOS OPERATIVOS(D)'!$C$10 -> $ 5,400.00 | J16: ='GASTOS OPERATIVOS(D)'!$C$10 -> $ 5,400.00 | K16: ='GASTOS OPERATIVOS(D)'!$C$10 -> $ 5,400.00 | L16: ='GASTOS OPERATIVOS(D)'!$C$10 -> $ 5,400.00
A17: GASTOS DE PUBLICIDAD | C17: ='GASTOS EN PUBLICIDAD(C)'!E8 -> $ 9,156.00 | D17: ='GASTOS EN PUBLICIDAD(C)'!F8 -> $ 9,156.00 | E17: ='GASTOS EN PUBLICIDAD(C)'!G8 -> $ 6,409.20 | F17: ='GASTOS EN PUBLICIDAD(C)'!H8 -> $ 4,486.44 | G17: ='GASTOS EN PUBLICIDAD(C)'!I8 -> $ 3,140.51 | H17: ='GASTOS EN PUBLICIDAD(C)'!J8 -> $ 1,570.25 | I17: ='GASTOS EN PUBLICIDAD(C)'!K8 -> $ 1,570.25 | J17: ='GASTOS EN PUBLICIDAD(C)'!L8 -> $ 1,570.25 | K17: ='GASTOS EN PUBLICIDAD(C)'!M8 -> $ 1,570.25 | L17: ='GASTOS EN PUBLICIDAD(C)'!N8 -> $ 1,570.25
A18: GASTOS DEPRECIACION DE EQUIPOS COMPUTACION | C18: ='GASTOS OPERATIVOS(D)'!$C$38 -> $ 800.00 | D18: ='GASTOS OPERATIVOS(D)'!$C$38 -> $ 800.00 | E18: ='GASTOS OPERATIVOS(D)'!$C$38 -> $ 800.00 | F18: ='GASTOS OPERATIVOS(D)'!$C$38 -> $ 800.00 | G18: ='GASTOS OPERATIVOS(D)'!$C$38 -> $ 800.00 | H18: ='GASTOS OPERATIVOS(D)'!$C$38 -> $ 800.00 | I18: ='GASTOS OPERATIVOS(D)'!$C$38 -> $ 800.00 | J18: ='GASTOS OPERATIVOS(D)'!$C$38 -> $ 800.00 | K18: ='GASTOS OPERATIVOS(D)'!$C$38 -> $ 800.00 | L18: ='GASTOS OPERATIVOS(D)'!$C$38 -> $ 800.00
A19: GASTOS DEPRECIACION MUEBLES ENSERES | C19: ='GASTOS OPERATIVOS(D)'!$C$36 -> $ 95.10 | D19: ='GASTOS OPERATIVOS(D)'!$C$36 -> $ 95.10 | E19: ='GASTOS OPERATIVOS(D)'!$C$36 -> $ 95.10 | F19: ='GASTOS OPERATIVOS(D)'!$C$36 -> $ 95.10 | G19: ='GASTOS OPERATIVOS(D)'!$C$36 -> $ 95.10 | H19: ='GASTOS OPERATIVOS(D)'!$C$36 -> $ 95.10 | I19: ='GASTOS OPERATIVOS(D)'!$C$36 -> $ 95.10 | J19: ='GASTOS OPERATIVOS(D)'!$C$36 -> $ 95.10 | K19: ='GASTOS OPERATIVOS(D)'!$C$36 -> $ 95.10 | L19: ='GASTOS OPERATIVOS(D)'!$C$36 -> $ 95.10
A20: GASTOS DEPRECIACION VEHICULOS | C20: ='GASTOS OPERATIVOS(D)'!$C$39 -> $ 4,000.00 | D20: ='GASTOS OPERATIVOS(D)'!$C$39 -> $ 4,000.00 | E20: ='GASTOS OPERATIVOS(D)'!$C$39 -> $ 4,000.00 | F20: ='GASTOS OPERATIVOS(D)'!$C$39 -> $ 4,000.00 | G20: ='GASTOS OPERATIVOS(D)'!$C$39 -> $ 4,000.00 | H20: ='GASTOS OPERATIVOS(D)'!$C$39 -> $ 4,000.00 | I20: ='GASTOS OPERATIVOS(D)'!$C$39 -> $ 4,000.00 | J20: ='GASTOS OPERATIVOS(D)'!$C$39 -> $ 4,000.00 | K20: ='GASTOS OPERATIVOS(D)'!$C$39 -> $ 4,000.00 | L20: ='GASTOS OPERATIVOS(D)'!$C$39 -> $ 4,000.00
A21: GASTOS DEPRECIACION DE MAQUINARIAS | C21: ='GASTOS OPERATIVOS(D)'!$C$37 -> $ 9,783.33 | D21: ='GASTOS OPERATIVOS(D)'!$C$37 -> $ 9,783.33 | E21: ='GASTOS OPERATIVOS(D)'!$C$37 -> $ 9,783.33 | F21: ='GASTOS OPERATIVOS(D)'!$C$37 -> $ 9,783.33 | G21: ='GASTOS OPERATIVOS(D)'!$C$37 -> $ 9,783.33 | H21: ='GASTOS OPERATIVOS(D)'!$C$37 -> $ 9,783.33 | I21: ='GASTOS OPERATIVOS(D)'!$C$37 -> $ 9,783.33 | J21: ='GASTOS OPERATIVOS(D)'!$C$37 -> $ 9,783.33 | K21: ='GASTOS OPERATIVOS(D)'!$C$37 -> $ 9,783.33 | L21: ='GASTOS OPERATIVOS(D)'!$C$37 -> $ 9,783.33
A22: SUELDOS Y SALARIOS | C22: ='SUELDOS Y SALARIOS(E)'!F12 -> $ 266,400.00 | D22: ='SUELDOS Y SALARIOS(E)'!B20 -> $ 283,308.41 | E22: ='SUELDOS Y SALARIOS(E)'!C20 -> $ 303,102.03 | F22: ='SUELDOS Y SALARIOS(E)'!D20 -> $ 325,573.35 | G22: ='SUELDOS Y SALARIOS(E)'!E20 -> $ 347,486.79 | H22: ='SUELDOS Y SALARIOS(E)'!F20 -> $ 375,737.78 | I22: ='SUELDOS Y SALARIOS(E)'!G20 -> $ 406,227.89 | J22: ='SUELDOS Y SALARIOS(E)'!H20 -> $ 440,216.79 | K22: ='SUELDOS Y SALARIOS(E)'!I20 -> $ 478,684.53 | L22: ='SUELDOS Y SALARIOS(E)'!J20 -> $ 523,163.00
A23: UTILIDAD OPERATIVA | C23: =(C10-C12-C13+C14+C15+C16+C17-C18-C19-C20-C21-C22) -> $ 313,782.61 | D23: =(D10-D12-D13+D14+D15+D16+D17-D18-D19-D20-D21-D22) -> $ 326,019.53 | E23: $ 335,081.71 | F23: $ 343,800.36 | G23: $ 356,280.35 | H23: $ 357,875.44 | I23: $ 364,582.99 | J23: $ 370,631.61 | K23: $ 374,174.29 | L23: $ 374,756.74
A24: GASTOS FINANCIERO (PAGO DE INTERESES) (-) | C24: ='GASTOS FINANCIEROS(A)'!$D$9 -> $ 15,911.12 | D24: ='GASTOS FINANCIEROS(A)'!$D$10 -> $ 15,164.87 | E24: ='GASTOS FINANCIEROS(A)'!$D$11 -> $ 14,299.22 | F24: ='GASTOS FINANCIEROS(A)'!$D$12 -> $ 13,295.07 | G24: ='GASTOS FINANCIEROS(A)'!$D$13 -> $ 12,130.25 | H24: ='GASTOS FINANCIEROS(A)'!$D$14 -> $ 10,779.07 | I24: ='GASTOS FINANCIEROS(A)'!$D$15 -> $ 9,211.69 | J24: ='GASTOS FINANCIEROS(A)'!$D$16 -> $ 7,393.53 | K24: ='GASTOS FINANCIEROS(A)'!$D$17 -> $ 5,284.47 | L24: ='GASTOS FINANCIEROS(A)'!$D$18 -> $ 2,837.96
A25: UTILIDAD OPERATIVA | C25: =(C23-C24) -> $ 297,871.49 | D25: =(D23-D24) -> $ 310,854.66 | E25: $ 320,782.48 | F25: $ 330,505.29 | G25: $ 344,150.09 | H25: $ 347,096.37 | I25: $ 355,371.30 | J25: $ 363,238.08 | K25: $ 368,889.82 | L25: $ 371,918.78
A26: PARTICIPACION DE TRABAJADORES (15%) (-) | C26: =(C25*0.15) -> $ 44,680.72 | D26: =(D25*0.15) -> $ 46,628.20 | E26: $ 48,117.37 | F26: $ 49,575.79 | G26: $ 51,622.51 | H26: $ 52,064.46 | I26: $ 53,305.69 | J26: $ 54,485.71 | K26: $ 55,333.47 | L26: $ 55,787.82
A27: U.A.I. | C27: =C25-C26 -> $ 253,190.77 | D27: =D25-D26 -> $ 264,226.46 | E27: $ 272,665.11 | F27: $ 280,929.49 | G27: $ 292,527.58 | H27: $ 295,031.92 | I27: $ 302,065.60 | J27: $ 308,752.37 | K27: $ 313,556.35 | L27: $ 316,130.97
A28: IMPUESTO A LA RENTA (25%) (-) | C28: =0.25*C27 -> $ 63,297.69 | D28: =0.25*D27 -> $ 66,056.62 | E28: $ 68,166.28 | F28: $ 70,232.37 | G28: $ 73,131.89 | H28: $ 73,757.98 | I28: $ 75,516.40 | J28: $ 77,188.09 | K28: $ 78,389.09 | L28: $ 79,032.74
A29: UTILIDAD NETA | C29: =C27-C28 -> $ 189,893.07 | D29: =D27-D28 -> $ 198,169.85 | E29: $ 204,498.83 | F29: $ 210,697.12 | G29: $ 219,395.68 | H29: $ 221,273.94 | I29: $ 226,549.20 | J29: $ 231,564.28 | K29: $ 235,167.26 | L29: $ 237,098.22
A30: INV. INICIAL EN OBRA FISICA (AÑO 0) (-) | B30: =('INV.OBRA CIVIL MAQUINARIA(A.2)'!E8)*-1 -> $ (133,000.00)
A31: INV. INICIAL EN MAQUINARIAS Y EQUIPOS (AÑO 0) (-) | B31: =('INV.OBRA CIVIL MAQUINARIA(A.2)'!D36)*-1 -> $ (107,001.00)
A32: GASTOS DE CONSTITUCION (AÑO 0) (-) | B32: =('GASTOS CONSTITUCION(A.1)'!B15)*-1 -> $ (1,161.00)
A33: CAPITAL DE TRABAJO (AÑO 0) (-) | B33: =MIN('CAPITAL TRABAJO(G)'!C17:N17) -> $ (256,060.48)
A34: VALOR DE DESECHO DEL PROYECTO (+) ) (AÑO 10) | L34: $ 1,030,664.88
A35: GASTOS DE AMORTIZACION | C35: =('GASTOS FINANCIEROS(A)'!$E$9)*-1 -> $ (4,664.05) | D35: =('GASTOS FINANCIEROS(A)'!$E$10)*-1 -> $ (5,410.30) | E35: =('GASTOS FINANCIEROS(A)'!$E$11)*-1 -> $ (6,275.95) | F35: =('GASTOS FINANCIEROS(A)'!$E$12)*-1 -> $ (7,280.10) | G35: =('GASTOS FINANCIEROS(A)'!$E$13)*-1 -> $ (8,444.92) | H35: =('GASTOS FINANCIEROS(A)'!$E$14)*-1 -> $ (9,796.11) | I35: =('GASTOS FINANCIEROS(A)'!$E$15)*-1 -> $ (11,363.49) | J35: =('GASTOS FINANCIEROS(A)'!$E$16)*-1 -> $ (13,181.64) | K35: =('GASTOS FINANCIEROS(A)'!$E$17)*-1 -> $ (15,290.71) | L35: =('GASTOS FINANCIEROS(A)'!$E$18)*-1 -> $ (17,737.22)
A36: GASTO DE DEPRECIACION | C36: ='GASTOS OPERATIVOS(D)'!C9 -> $ 14,678.43 | D36: ='GASTOS OPERATIVOS(D)'!D9 -> $ 14,678.43 | E36: ='GASTOS OPERATIVOS(D)'!E9 -> $ 14,678.43 | F36: ='GASTOS OPERATIVOS(D)'!F9 -> $ 14,678.43 | G36: ='GASTOS OPERATIVOS(D)'!G9 -> $ 14,678.43 | H36: ='GASTOS OPERATIVOS(D)'!H9 -> $ 14,678.43 | I36: ='GASTOS OPERATIVOS(D)'!I9 -> $ 14,678.43 | J36: ='GASTOS OPERATIVOS(D)'!J9 -> $ 14,678.43 | K36: ='GASTOS OPERATIVOS(D)'!K9 -> $ 14,678.43 | L36: ='GASTOS OPERATIVOS(D)'!L9 -> $ 14,678.43
A37: FLUJO NETO DE EFECTIVO | B37: =SUM(B30:B36) -> $ (497,222.48) | C37: =SUM(C29:C36) -> $ 199,907.45 | D37: =SUM(D29:D36) -> $ 207,437.98 | E37: $ 212,901.32 | F37: $ 218,095.45 | G37: $ 225,629.20 | H37: $ 226,156.26 | I37: $ 229,864.15 | J37: $ 233,061.07 | K37: $ 234,554.99 | L37: $ 1,264,704.31
A38: FLUJO NETO DE EFECTIVO ACUMULADO | C38: =C37 -> $ 199,907.45 | D38: =(D37+C38) -> $ 407,345.43 | E38: =(E37+D38) -> $ 620,246.75 | F38: $ 838,342.20 | G38: $ 1,063,971.39 | H38: $ 1,290,127.66 | I38: $ 1,519,991.81 | J38: $ 1,753,052.88 | K38: $ 1,987,607.86 | L38: $ 3,252,312.18
A39: TMAR | B39: ='VALOR DE DESECHO Y TMAR(F)(F.1)'!D18 -> 14%
A40: VAN (VALOR ACTUAL NETO) (VALOR PRESENTE FLUJOS NETOS) | B40: =NPV(B39,B37:L37) -> $ 819,772.19
A41: TIR | B41: =IRR(B37:L37) -> 44%
A43: FLUJO CAJA PROMEDIO ANUAL | B43: =AVERAGE(B37:L37) -> $ 250,462.70

Sheet ESTADO RESULTADO(I)
A1: ESTADO DE RESULTADOS
B2: AÑO 1 | C2: AÑO 2 | D2: AÑO 3 | E2: AÑO 4 | F2: AÑO 5 | G2: AÑO 6 | H2: AÑO 7 | I2: AÑO 8 | J2: AÑO 9 | K2: AÑO 10
A4: INGRESOS POR SERVICIOS | B4: ='FLUJO DE CAJA(H)'!C8 -> $ 582,906.64 | C4: ='FLUJO DE CAJA(H)'!D8 -> $ 612,051.97 | D4: ='FLUJO DE CAJA(H)'!E8 -> $ 642,654.57 | E4: ='FLUJO DE CAJA(H)'!F8 -> $ 674,787.30 | F4: ='FLUJO DE CAJA(H)'!G8 -> $ 708,526.67 | G4: ='FLUJO DE CAJA(H)'!H8 -> $ 743,953.00 | H4: ='FLUJO DE CAJA(H)'!I8 -> $ 781,150.65 | I4: ='FLUJO DE CAJA(H)'!J8 -> $ 820,208.18 | J4: ='FLUJO DE CAJA(H)'!K8 -> $ 861,218.59 | K4: ='FLUJO DE CAJA(H)'!L8 -> $ 904,279.52
A5: COSTO DE PRODUCCION | B5: 0 | C5: 0 | D5: 0 | E5: 0 | F5: 0 | G5: 0 | H5: 0 | I5: 0 | J5: 0 | K5: 0
A6: UTILIDAD BRUTA | B6: =B4-B5 -> $ 582,906.64 | C6: =C4-C5 -> $ 612,051.97 | D6: $ 642,654.57 | E6: $ 674,787.30 | F6: $ 708,526.67 | G6: $ 743,953.00 | H6: $ 781,150.65 | I6: $ 820,208.18 | J6: $ 861,218.59 | K6: $ 904,279.52
A7: GASTOS OPERATIVOS (-)
A8: SERVICIOS BASICOS | B8: ='FLUJO DE CAJA(H)'!C12 -> $ 8,901.60 | C8: ='FLUJO DE CAJA(H)'!D12 -> $ 8,901.60 | D8: ='FLUJO DE CAJA(H)'!E12 -> $ 8,901.60 | E8: ='FLUJO DE CAJA(H)'!F12 -> $ 8,901.60 | F8: ='FLUJO DE CAJA(H)'!G12 -> $ 8,901.60 | G8: ='FLUJO DE CAJA(H)'!H12 -> $ 8,901.60 | H8: ='FLUJO DE CAJA(H)'!I12 -> $ 8,901.60 | I8: ='FLUJO DE CAJA(H)'!J12 -> $ 8,901.60 | J8: ='FLUJO DE CAJA(H)'!K12 -> $ 8,901.60 | K8: ='FLUJO DE CAJA(H)'!L12 -> $ 8,901.60
A9: SUMINISTRO DE OFICINA | B9: ='FLUJO DE CAJA(H)'!C13 -> $ 100.00 | C9: ='FLUJO DE CAJA(H)'!D13 -> $ 100.00 | D9: ='FLUJO DE CAJA(H)'!E13 -> $ 100.00 | E9: ='FLUJO DE CAJA(H)'!F13 -> $ 120.00 | F9: ='FLUJO DE CAJA(H)'!G13 -> $ 120.00 | G9: ='FLUJO DE CAJA(H)'!H13 -> $ 130.00 | H9: ='FLUJO DE CAJA(H)'!I13 -> $ 130.00 | I9: ='FLUJO DE CAJA(H)'!J13 -> $ 150.00 | J9: ='FLUJO DE CAJA(H)'!K13 -> $ 150.00 | K9: ='FLUJO DE CAJA(H)'!L13 -> $ 150.00
A10: MANTENIMIENTO MAQUINARIAS | B10: ='FLUJO DE CAJA(H)'!C14 -> $ 1,000.00 | C10: ='FLUJO DE CAJA(H)'!D14 -> $ 1,000.00 | D10: ='FLUJO DE CAJA(H)'!E14 -> $ 2,000.00 | E10: ='FLUJO DE CAJA(H)'!F14 -> $ 3,000.00 | F10: ='FLUJO DE CAJA(H)'!G14 -> $ 5,000.00 | G10: ='FLUJO DE CAJA(H)'!H14 -> $ 1,000.00 | H10: ='FLUJO DE CAJA(H)'!I14 -> $ 1,000.00 | I10: ='FLUJO DE CAJA(H)'!J14 -> $ 2,000.00 | J10: ='FLUJO DE CAJA(H)'!K14 -> $ 3,000.00 | K10: ='FLUJO DE CAJA(H)'!L14 -> $ 5,000.00
A11: COMBUSTIBLES | B11: ='FLUJO DE CAJA(H)'!C15 -> $ 5,400.00 | C11: ='FLUJO DE CAJA(H)'!D15 -> $ 5,400.00 | D11: ='FLUJO DE CAJA(H)'!E15 -> $ 5,400.00 | E11: ='FLUJO DE CAJA(H)'!F15 -> $ 5,400.00 | F11: ='FLUJO DE CAJA(H)'!G15 -> $ 5,400.00 | G11: ='FLUJO DE CAJA(H)'!H15 -> $ 5,400.00 | H11: ='FLUJO DE CAJA(H)'!I15 -> $ 5,400.00 | I11: ='FLUJO DE CAJA(H)'!J15 -> $ 5,400.00 | J11: ='FLUJO DE CAJA(H)'!K15 -> $ 5,400.00 | K11: ='FLUJO DE CAJA(H)'!L15 -> $ 5,400.00
A12: CAPACITACION | B12: ='GASTOS OPERATIVOS(D)'!$C$10 -> $ 5,400.00 | C12: ='GASTOS OPERATIVOS(D)'!$C$10 -> $ 5,400.00 | D12: ='GASTOS OPERATIVOS(D)'!$C$10 -> $ 5,400.00 | E12: ='GASTOS OPERATIVOS(D)'!$C$10 -> $ 5,400.00 | F12: ='GASTOS OPERATIVOS(D)'!$C$10 -> $ 5,400.00 | G12: ='GASTOS OPERATIVOS(D)'!$C$10 -> $ 5,400.00 | H12: ='GASTOS OPERATIVOS(D)'!$C$10 -> $ 5,400.00 | I12: ='GASTOS OPERATIVOS(D)'!$C$10 -> $ 5,400.00 | J12: ='GASTOS OPERATIVOS(D)'!$C$10 -> $ 5,400.00 | K12: ='GASTOS OPERATIVOS(D)'!$C$10 -> $ 5,400.00
A13: GASTOS DE PUBLICIDAD | B13: ='FLUJO DE CAJA(H)'!C17 -> $ 9,156.00 | C13: ='FLUJO DE CAJA(H)'!D17 -> $ 9,156.00 | D13: ='FLUJO DE CAJA(H)'!E17 -> $ 6,409.20 | E13: ='FLUJO DE CAJA(H)'!F17 -> $ 4,486.44 | F13: ='FLUJO DE CAJA(H)'!G17 -> $ 3,140.51 | G13: ='FLUJO DE CAJA(H)'!H17 -> $ 1,570.25 | H13: ='FLUJO DE CAJA(H)'!I17 -> $ 1,570.25 | I13: ='FLUJO DE CAJA(H)'!J17 -> $ 1,570.25 | J13: ='FLUJO DE CAJA(H)'!K17 -> $ 1,570.25 | K13: ='FLUJO DE CAJA(H)'!L17 -> $ 1,570.25
A14: SUELDOS Y SALARIOS | B14: ='FLUJO DE CAJA(H)'!C22 -> $ 266,400.00 | C14: ='FLUJO DE CAJA(H)'!D22 -> $ 283,308.41 | D14: ='FLUJO DE CAJA(H)'!E22 -> $ 303,102.03 | E14: ='FLUJO DE CAJA(H)'!F22 -> $ 325,573.35 | F14: ='FLUJO DE CAJA(H)'!G22 -> $ 347,486.79 | G14: ='FLUJO DE CAJA(H)'!H22 -> $ 375,737.78 | H14: ='FLUJO DE CAJA(H)'!I22 -> $ 406,227.89 | I14: ='FLUJO DE CAJA(H)'!J22 -> $ 440,216.79 | J14: ='FLUJO DE CAJA(H)'!K22 -> $ 478,684.53 | K14: ='FLUJO DE CAJA(H)'!L22 -> $ 523,163.00
A15: EBITDA | B15: =(B6-B8-B9-B10-B11-B12+B13-B14) -> $ 304,861.04 | C15: =(C6-C8-C9-C10-C11-C12+C13-C14) -> $ 317,097.97 | D15: $ 324,160.14 | E15: $ 330,878.79 | F15: $ 339,358.78 | G15: $ 348,953.87 | H15: $ 355,661.42 | I15: $ 359,710.05 | J15: $ 361,252.72 | K15: $ 357,835.17
A16: GASTOS DEPRECIACION DE EQUIPOS COMPUTACION | B16: ='FLUJO DE CAJA(H)'!C18 -> $ 800.00 | C16: ='FLUJO DE CAJA(H)'!D18 -> $ 800.00 | D16: ='FLUJO DE CAJA(H)'!E18 -> $ 800.00 | E16: ='FLUJO DE CAJA(H)'!F18 -> $ 800.00 | F16: ='FLUJO DE CAJA(H)'!G18 -> $ 800.00 | G16: ='FLUJO DE CAJA(H)'!H18 -> $ 800.00 | H16: ='FLUJO DE CAJA(H)'!I18 -> $ 800.00 | I16: ='FLUJO DE CAJA(H)'!J18 -> $ 800.00 | J16: ='FLUJO DE CAJA(H)'!K18 -> $ 800.00 | K16: ='FLUJO DE CAJA(H)'!L18 -> $ 800.00
A17: GASTOS DEPRECIACION MUEBLES ENSERES | B17: ='FLUJO DE CAJA(H)'!C19 -> $ 95.10 | C17: ='FLUJO DE CAJA(H)'!D19 -> $ 95.10 | D17: ='FLUJO DE CAJA(H)'!E19 -> $ 95.10 | E17: ='FLUJO DE CAJA(H)'!F19 -> $ 95.10 | F17: ='FLUJO DE CAJA(H)'!G19 -> $ 95.10 | G17: ='FLUJO DE CAJA(H)'!H19 -> $ 95.10 | H17: ='FLUJO DE CAJA(H)'!I19 -> $ 95.10 | I17: ='FLUJO DE CAJA(H)'!J19 -> $ 95.10 | J17: ='FLUJO DE CAJA(H)'!K19 -> $ 95.10 | K17: ='FLUJO DE CAJA(H)'!L19 -> $ 95.10
A18: GASTOS DEPRECIACION VEHICULOS | B18: ='FLUJO DE CAJA(H)'!C20 -> $ 4,000.00 | C18: ='FLUJO DE CAJA(H)'!D20 -> $ 4,000.00 | D18: ='FLUJO DE CAJA(H)'!E20 -> $ 4,000.00 | E18: ='FLUJO DE CAJA(H)'!F20 -> $ 4,000.00 | F18: ='FLUJO DE CAJA(H)'!G20 -> $ 4,000.00 | G18: ='FLUJO DE CAJA(H)'!H20 -> $ 4,000.00 | H18: ='FLUJO DE CAJA(H)'!I20 -> $ 4,000.00 | I18: ='FLUJO DE CAJA(H)'!J20 -> $ 4,000.00 | J18: ='FLUJO DE CAJA(H)'!K20 -> $ 4,000.00 | K18: ='FLUJO DE CAJA(H)'!L20 -> $ 4,000.00
A19: GASTOS DEPRECIACION DE MAQUINARIAS | B19: ='FLUJO DE CAJA(H)'!C21 -> $ 9,783.33 | C19: ='FLUJO DE CAJA(H)'!D21 -> $ 9,783.33 | D19: ='FLUJO DE CAJA(H)'!E21 -> $ 9,783.33 | E19: ='FLUJO DE CAJA(H)'!F21 -> $ 9,783.33 | F19: ='FLUJO DE CAJA(H)'!G21 -> $ 9,783.33 | G19: ='FLUJO DE CAJA(H)'!H21 -> $ 9,783.33 | H19: ='FLUJO DE CAJA(H)'!I21 -> $ 9,783.33 | I19: ='FLUJO DE CAJA(H)'!J21 -> $ 9,783.33 | J19: ='FLUJO DE CAJA(H)'!K21 -> $ 9,783.33 | K19: ='FLUJO DE CAJA(H)'!L21 -> $ 9,783.33
A20: AMORTIZACIONES | B20: ='GASTOS FINANCIEROS(A)'!$E$9 -> $ 4,664.05 | C20: ='GASTOS FINANCIEROS(A)'!$E$10 -> $ 5,410.30 | D20: ='GASTOS FINANCIEROS(A)'!$E$11 -> $ 6,275.95 | E20: ='GASTOS FINANCIEROS(A)'!$E$12 -> $ 7,280.10 | F20: ='GASTOS FINANCIEROS(A)'!$E$13 -> $ 8,444.92 | G20: ='GASTOS FINANCIEROS(A)'!$E$14 -> $ 9,796.11 | H20: ='GASTOS FINANCIEROS(A)'!$E$15 -> $ 11,363.49 | I20: ='GASTOS FINANCIEROS(A)'!$E$16 -> $ 13,181.64 | J20: ='GASTOS FINANCIEROS(A)'!$E$17 -> $ 15,290.71 | K20: ='GASTOS FINANCIEROS(A)'!$E$18 -> $ 17,737.22
A21: UTILIDAD OPERATIVA | B21: =(B15-B16-B17-B18-B19-B20) -> $ 285,518.55 | C21: =(C15-C16-C17-C18-C19-C20) -> $ 297,009.23 | D21: $ 303,205.76 | E21: $ 308,920.25 | F21: $ 316,235.43 | G21: $ 324,479.33 | H21: $ 329,619.50 | I21: $ 331,849.97 | J21: $ 331,283.58 | K21: $ 325,419.52
A22: OTROS GASTOS
A23: GASTOS FINANCIERO (PAGO DE INTERESES) (-) | B23: ='FLUJO DE CAJA(H)'!C24 -> $ 15,911.12 | C23: ='FLUJO DE CAJA(H)'!D24 -> $ 15,164.87 | D23: ='FLUJO DE CAJA(H)'!E24 -> $ 14,299.22 | E23: ='FLUJO DE CAJA(H)'!F24 -> $ 13,295.07 | F23: ='FLUJO DE CAJA(H)'!G24 -> $ 12,130.25 | G23: ='FLUJO DE CAJA(H)'!H24 -> $ 10,779.07 | H23: ='FLUJO DE CAJA(H)'!I24 -> $ 9,211.69 | I23: ='FLUJO DE CAJA(H)'!J24 -> $ 7,393.53 | J23: ='FLUJO DE CAJA(H)'!K24 -> $ 5,284.47 | K23: ='FLUJO DE CAJA(H)'!L24 -> $ 2,837.96
A24: UTILIDAD OPERATIVA | B24: =(B21-B23) -> $ 269,607.44 | C24: =(C21-C23) -> $ 281,844.36 | D24: $ 288,906.53 | E24: $ 295,625.18 | F24: $ 304,105.17 | G24: $ 313,700.27 | H24: $ 320,407.81 | I24: $ 324,456.44 | J24: $ 325,999.11 | K24: $ 322,581.57
A25: PARTICIPACION DE TRABAJADORES (15%) (-) | B25: =(B24*15%) -> $ 40,441.12 | C25: =(C24*15%) -> $ 42,276.65 | D25: $ 43,335.98 | E25: $ 44,343.78 | F25: $ 45,615.78 | G25: $ 47,055.04 | H25: $ 48,061.17 | I25: $ 48,668.47 | J25: $ 48,899.87 | K25: $ 48,387.23
A26: UTILIDAD OPERATIVA ANTES IMPUESTO | B26: =(B24-B25) -> $ 229,166.32 | C26: =(C24-C25) -> $ 239,567.71 | D26: $ 245,570.55 | E26: $ 251,281.41 | F26: $ 258,489.40 | G26: $ 266,645.23 | H26: $ 272,346.64 | I26: $ 275,787.97 | J26: $ 277,099.25 | K26: $ 274,194.33
A27: IMPUESTO A LA RENTA (25%) (-) | B27: =(B26*25%) -> $ 57,291.58 | C27: =(C26*25%) -> $ 59,891.93 | D27: $ 61,392.64 | E27: $ 62,820.35 | F27: $ 64,622.35 | G27: $ 66,661.31 | H27: $ 68,086.66 | I27: $ 68,946.99 | J27: $ 69,274.81 | K27: $ 68,548.58
A28: UTILIDAD NETA | B28: =(B26-B27) -> $ 171,874.74 | C28: =(C26-C27) -> $ 179,675.78 | D28: $ 184,177.91 | E28: $ 188,461.05 | F28: $ 193,867.05 | G28: $ 199,983.92 | H28: $ 204,259.98 | I28: $ 206,840.98 | J28: $ 207,824.43 | K28: $ 205,645.75

Sheet VAN Y TIR(J)(J.1)
A1: anexo K
A2: CALCULO DEL TIR Y VAN
A3: TASA | B3: FLUJOS
A4: ='VALOR DE DESECHO Y TMAR(F)(F.1)'!D13 -> 14% | B4: ='FLUJO DE CAJA(H)'!B37 -> $ (497,222.48)
B5: ='FLUJO DE CAJA(H)'!C37 -> $ 199,907.45
B6: ='FLUJO DE CAJA(H)'!D37 -> $ 207,437.98
B7: ='FLUJO DE CAJA(H)'!E37 -> $ 212,901.32
B8: ='FLUJO DE CAJA(H)'!F37 -> $ 218,095.45
B9: ='FLUJO DE CAJA(H)'!G37 -> $ 225,629.20
B10: ='FLUJO DE CAJA(H)'!H37 -> $ 226,156.26
B11: ='FLUJO DE CAJA(H)'!I37 -> $ 229,864.15
B12: ='FLUJO DE CAJA(H)'!J37 -> $ 233,061.07
B13: ='FLUJO DE CAJA(H)'!K37 -> $ 234,554.99
B14: ='FLUJO DE CAJA(H)'!L37 -> $ 1,264,704.31
A15: VAN | B15: =NPV(A4,B4:B14) -> $ 819,772.19
A16: TIR | B16: =IRR(B4:B14) -> 44%

Sheet PAY BACK(K)
A1: PERIODO DE RECUPERACION
A2: AÑO | B2: FLUJO | C2: REDUCIENDO
A3: 0 | B3: ='FLUJO DE CAJA(H)'!B37 -> (497,222.48) | C3: =B3 -> (497,222.48)
A4: 1 | B4: ='FLUJO DE CAJA(H)'!C37 -> 199,907.45 | C4: =(C3+B4) -> (297,315.03)
A5: 2 | B5: ='FLUJO DE CAJA(H)'!D37 -> 207,437.98 | C5: =(C4+B5) -> (89,877.05)
A6: 3 | B6: ='FLUJO DE CAJA(H)'!E37 -> 212,901.32 | C6: =(C5+B6) -> 123,024.27
A7: 4 | B7: ='FLUJO DE CAJA(H)'!F37 -> 218,095.45 | C7: 341,119.72
A8: 5 | B8: ='FLUJO DE CAJA(H)'!G37 -> 225,629.20 | C8: 566,748.91
A9: 6 | B9: ='FLUJO DE CAJA(H)'!H37 -> 226,156.26 | C9: 792,905.18 | E9: DATOS
A10: 7 | B10: ='FLUJO DE CAJA(H)'!I37 -> 229,864.15 | C10: 1,022,769.33 | E10: AÑO | F10: 2
A11: 8 | B11: ='FLUJO DE CAJA(H)'!J37 -> 233,061.07 | C11: 1,255,830.40 | E11: ULTIMO NEGATIVO | F11: 89,877.05
A12: 9 | B12: ='FLUJO DE CAJA(H)'!K37 -> 234,554.99 | C12: 1,490,385.38 | E12: FLUJO SIGUIENTE | F12: =B6 -> 212,901.32
A13: 10 | B13: ='FLUJO DE CAJA(H)'!L37 -> 1,264,704.31 | C13: 2,755,089.70 | E13: PR | F13: =(F10+(F11/F12)) -> 2.42
F14: AÑOS
A17: 0 | B17: 1 | C17: 2 | D17: 3 | E17: 4 | F17: 5 | G17: 6 | H17: 7 | I17: 8 | J17: 9 | K17: 10
A18: ='FLUJO DE CAJA(H)'!$B$37 -> (497,222.48) | B18: ='FLUJO DE CAJA(H)'!$C$37 -> 199,907.45 | C18: ='FLUJO DE CAJA(H)'!$D$37 -> 207,437.98 | D18: ='FLUJO DE CAJA(H)'!$E$37 -> 212,901.32 | E18: ='FLUJO DE CAJA(H)'!$F$37 -> 218,095.45 | F18: ='FLUJO DE CAJA(H)'!$G$37 -> 225,629.20 | G18: ='FLUJO DE CAJA(H)'!$H$37 -> 226,156.26 | H18: ='FLUJO DE CAJA(H)'!$I$37 -> 229,864.15 | I18: ='FLUJO DE CAJA(H)'!$J$37 -> 233,061.07 | J18: ='FLUJO DE CAJA(H)'!$K$37 -> 234,554.99 | K18: ='FLUJO DE CAJA(H)'!$L$37 -> 1,264,704.31

Sheet ANALISIS DE SENSIBILIDAD(L)
A1: ANALISIS DE SENSABILIDAD DE UNA VARIABLE | H1: ANEXO L
A2: Escenario | B2: Variacion | C2: tir | D2: tmar | E2: Analisis | F2: Punto critico
A3: Aumento de ingresos | B3: 20% | C3: 59% | D3: ='FLUJO DE CAJA(H)'!$B$39 -> 14% | E3: =IF(C3<D3,"No rentable"," Rentable") -> Rentable | F3: Se puede disminuir hasta 41%
B4: 40% | C4: 74% | D4: ='FLUJO DE CAJA(H)'!$B$39 -> 14% | E4: =IF(C4<D4,"No rentable"," Rentable") -> Rentable
B5: 60% | C5: 89% | D5: ='FLUJO DE CAJA(H)'!$B$39 -> 14% | E5: Rentable
A6: Disminucion de ingresos | B6: =(20%)*-1 -> -20% | C6: 29% | D6: ='FLUJO DE CAJA(H)'!$B$39 -> 14% | E6: Rentable
B7: =(40%)*-1 -> -40% | C7: 14% | D7: ='FLUJO DE CAJA(H)'!$B$39 -> 14% | E7: Rentable
B8: =(60%)*-1 -> -60% | C8: -1% | D8: ='FLUJO DE CAJA(H)'!$B$39 -> 14% | E8: No rentable
A11: VARIACIONES DE LOS INGRESOS
A12: años | B12: valor original | C12: =B3 -> 20% | D12: =B4 -> 40% | E12: =B5 -> 60% | F12: =B6 -> -20% | G12: =B7 -> -40% | H12: =B8 -> -60%
A13: 1 | B13: ='FLUJO DE CAJA(H)'!$C$8 -> 582906.6427 | C13: =(B13*$C$12)+B13 -> 699487.9712 | D13: =(B13*$D$12)+B13 -> 816069.2998 | E13: =(B13*$E$12)+B13 -> 932650.6283 | F13: =(B13*$F$12)+B13 -> 466325.3141 | G13: =(B13*$G$12)+B13 -> 349743.9856 | H13: =(B13*$H$12)+B13 -> 233162.6571
A14: 2 | B14: ='FLUJO DE CAJA(H)'!$D$8 -> 612051.9748 | C14: 734462.3698 | D14: 856872.7648 | E14: 979283.1597 | F14: 489641.5799 | G14: 367231.1849 | H14: 244820.7899
A15: 3 | B15: ='FLUJO DE CAJA(H)'!$E$8 -> 642654.5736 | C15: 771185.4883 | D15: 899716.403 | E15: 1028247.318 | F15: 514123.6589 | G15: 385592.7441 | H15: 257061.8294
A16: 4 | B16: ='FLUJO DE CAJA(H)'!$F$8 -> 674787.3022 | C16: 809744.7627 | D16: 944702.2231 | E16: 1079659.684 | F16: 539829.8418 | G16: 404872.3813 | H16: 269914.9209
A17: 5 | B17: ='FLUJO DE CAJA(H)'!$H$8 -> 743953.0007 | C17: 892743.6009 | D17: 1041534.201 | E17: 1190324.801 | F17: 595162.4006 | G17: 446371.8004 | H17: 297581.2003
A18: 6 | B18: ='FLUJO DE CAJA(H)'!$H$8 -> 743953.0007 | C18: 892743.6009 | D18: 1041534.201 | E18: 1190324.801 | F18: 595162.4006 | G18: 446371.8004 | H18: 297581.2003
A19: 7 | B19: ='FLUJO DE CAJA(H)'!$I$8 -> 781150.6508 | C19: 937380.7809 | D19: 1093610.911 | E19: 1249841.041 | F19: 624920.5206 | G19: 468690.3905 | H19: 312460.2603
A20: 8 | B20: ='FLUJO DE CAJA(H)'!$J$8 -> 820208.1833 | C20: 984249.82 | D20: 1148291.457 | E20: 1312333.093 | F20: 656166.5466 | G20: 492124.91 | H20: 328083.2733
A21: 9 | B21: ='FLUJO DE CAJA(H)'!$K$8 -> 861218.5925 | C21: 1033462.311 | D21: 1205706.029 | E21: 1377949.748 | F21: 688974.874 | G21: 516731.1555 | H21: 344487.437
A22: 10 | B22: ='FLUJO DE CAJA(H)'!$L$8 -> 904279.5221 | C22: 1085135.426 | D22: 1265991.331 | E22: 1446847.235 | F22: 723423.6177 | G22: 542567.7132 | H22: 361711.8088
